bitfinex/quotes_BTCUSD_20260311
["timestamp","ask_amount","ask_price","bid_price","bid_amount"]
[1773244197646,0.04281748,70035.0,70010.0,0.04384297]
[1773244197827,0.04063125,70035.0,70010.0,0.04065674]
[1773244198232,0.03844676,70035.0,70010.0,0.03847225]
[1773244198459,0.03626398,70035.0,70011.0,0.20765554]
[1773244198876,0.03408289,70035.0,70011.0,0.20547445]
[1773244199057,0.03190349,70035.0,70011.0,0.20547445]
[1773244199263,0.03190349,70035.0,70011.0,0.20329505]
[1773244199460,0.02972579,70035.0,70011.0,0.20329505]
[1773244199659,0.02972579,70035.0,70011.0,0.20111735]
[1773244199869,0.02754977,70035.0,70012.0,0.07141632]
[1773244200065,0.02754977,70035.0,70012.0,0.0692403]
[1773244200243,0.02537541,70035.0,70012.0,0.0692403]
[1773244200437,1e-08,70037.0,70013.0,0.20983832]
[1773244200636,0.0695717,70046.0,70013.0,0.20983832]
[1773244200952,0.07574092,70048.0,70021.0,0.20766752]
[1773244201136,0.21538635,70046.0,70015.0,0.20983832]
[1773244201504,0.26229429,70047.0,70016.0,0.00144]
[1773244201784,0.07574092,70048.0,70017.0,0.20983832]
[1773244202024,0.07574117,70048.0,70019.0,0.20983832]
[1773244202570,0.21538635,70046.0,70018.0,0.0714102]
[1773244202794,0.07574117,70048.0,70018.0,0.0714102]
[1773244202950,0.07574117,70048.0,70019.0,0.20911129]
[1773244203143,0.07357611,70048.0,70019.0,0.20694623]
[1773244203340,0.07357611,70048.0,70019.0,0.20550623]
[1773244203585,3.309e-05,70048.0,70021.0,0.20767519]
[1773244203796,0.13781006,70053.0,70031.0,0.20983832]
[1773244203995,0.07136972,70058.0,70033.0,0.20983832]
[1773244204175,0.06920977,70059.0,70033.0,0.20767866]
[1773244204374,0.06705204,70059.0,70033.0,0.20767866]
[1773244204590,0.06705204,70059.0,70033.0,0.20552093]
[1773244204779,0.00022001,70062.0,70032.0,0.07067447]
[1773244204780,0.00022001,70062.0,70040.0,0.1285195]
[1773244204984,0.00930585,70073.0,70041.0,0.21127832]
[1773244205166,0.00930585,70073.0,70041.0,0.20912416]
[1773244205362,0.21552905,70078.0,70041.0,0.20912416]
[1773244205363,1e-08,70078.0,70042.0,0.26123453]
[1773244205612,0.00573792,70092.0,70061.0,0.20768747]
[1773244205786,0.04285735,70093.0,70069.0,0.20983832]
[1773244205787,0.1120423,70093.0,70069.0,0.20983832]
[1773244205998,0.07133379,70094.0,70070.0,0.07064822]
[1773244206198,0.07133379,70094.0,70069.0,0.07135721]
[1773244206199,0.06918655,70094.0,70069.0,0.07135721]
[1773244206417,0.06918655,70094.0,70068.0,0.00144]
[1773244206418,0.21538635,70093.0,70068.0,0.00144]
[1773244206606,0.21472183,70093.0,70068.0,0.00144]
[1773244206785,0.21472183,70093.0,70069.0,0.00144]
[1773244206995,0.00148,70092.0,70070.0,0.00144]
[1773244207203,0.21538635,70091.0,70071.0,0.00144]
[1773244207569,0.00148,70090.0,70072.0,0.00144]
[1773244207704,0.00148,70090.0,70073.0,0.00144]
[1773244207905,0.07133787,70089.0,70074.0,0.07279308]
[1773244208106,0.06920081,70089.0,70075.0,0.00144]
[1773244208310,0.06706521,70089.0,70075.0,0.00144]
[1773244208506,0.06706521,70089.0,70069.0,0.00144]
[1773244208507,0.21538635,70088.0,70069.0,0.00144]
[1773244208746,0.21538635,70088.0,70052.0,0.20983832]
[1773244208747,0.21325228,70088.0,70068.0,0.00144]
[1773244209187,0.00148,70087.0,70068.0,0.00144]
[1773244209331,0.00148,70087.0,70069.0,0.00144]
[1773244209690,0.06706521,70089.0,70052.0,0.20845198]
[1773244209691,0.00148,70086.0,70067.0,0.00144]
[1773244209849,0.00148,70085.0,70068.0,0.00144]
[1773244210050,0.07134295,70084.0,70069.0,0.00144]
[1773244210251,0.07134295,70084.0,70053.0,0.07137453]
[1773244210252,0.06921606,70084.0,70070.0,0.00144]
[1773244210432,0.06709068,70084.0,70071.0,0.00144]
[1773244210641,0.07282295,70088.0,70053.0,0.07137453]
[1773244210642,0.00148,70092.0,70072.0,0.00144]
[1773244210858,0.001,70087.0,70073.0,0.00144]
[1773244211059,0.00148,70094.0,70074.0,0.00144]
[1773244211281,0.00148,70094.0,70063.0,0.2084726]
[1773244211461,0.001,70087.0,70065.0,0.20983832]
[1773244211708,0.07040597,70095.0,70067.0,0.20771795]
[1773244211855,0.07040597,70095.0,70068.0,0.00129723]
[1773244211856,0.06828724,70095.0,70068.0,0.00129723]
[1773244212049,0.0001427,70078.0,70069.0,0.0692395]
[1773244212266,0.21341202,70094.0,70069.0,0.06712247]
[1773244212473,0.21129663,70094.0,70069.0,0.06500708]
[1773244212688,0.20918291,70094.0,70069.0,0.06500708]
[1773244212917,0.20918291,70094.0,70062.0,0.20983832]
[1773244212918,0.20918291,70094.0,70063.0,0.07136434]
[1773244213121,0.06828724,70095.0,70052.0,0.07137554]
[1773244213122,0.1285195,70090.0,70052.0,0.07137554]
[1773244213374,0.21538635,70089.0,70052.0,0.06926369]
[1773244213568,0.21538635,70087.0,70053.0,0.00144]
[1773244213721,0.21327888,70087.0,70053.0,0.00144]
[1773244213927,0.21538635,70085.0,70054.0,0.00148]
[1773244214212,0.21538635,70083.0,70055.0,0.07137249]
[1773244214340,0.21538635,70083.0,70056.0,0.00148]
[1773244214541,0.21328328,70083.0,70044.0,0.07075971]
[1773244214730,0.21328328,70083.0,70046.0,0.20983832]
[1773244214934,0.21538635,70081.0,70046.0,0.20773724]
[1773244215137,0.00148,70080.0,70046.0,0.20773724]
[1773244215334,0.00148,70080.0,70046.0,0.20563837]
[1773244215562,0.00148,70079.0,70046.0,0.20354166]
[1773244215766,0.00148,70078.0,70046.0,0.20354166]
[1773244216049,0.00148,70078.0,70046.0,0.20144688]
[1773244216250,0.0692572,70077.0,70048.0,0.20774544]
[1773244216568,0.06716619,70077.0,70048.0,0.20774544]
[1773244216767,0.06716619,70077.0,70048.0,0.20565443]
[1773244217084,0.06507705,70077.0,70048.0,0.20356529]
[1773244217322,0.07134092,70086.0,70050.0,0.1285195]
[1773244217517,0.07025562,70087.0,70051.0,0.20983832]
[1773244217736,0.07025562,70087.0,70051.0,0.20775302]
[1773244217936,0.0691722,70087.0,70051.0,0.20775302]
[1773244218076,0.0691722,70087.0,70051.0,0.2056696]
[1773244218281,0.06709063,70087.0,70053.0,0.20983832]
[1773244218528,0.06709063,70087.0,70055.0,0.20983832]
[1773244218874,0.06501086,70087.0,70055.0,0.20775855]
[1773244219093,0.21538635,70086.0,70056.0,0.00148]
[1773244219296,0.21538635,70086.0,70052.0,0.07137554]
[1773244219297,0.00148,70085.0,70057.0,0.00148]
[1773244219509,0.21538635,70084.0,70057.0,0.00148]
[1773244219738,0.21331204,70084.0,70052.0,0.07018515]
[1773244219973,0.21123937,70084.0,70058.0,0.00148]
[1773244220176,0.21123937,70084.0,70052.0,0.07018515]
[1773244220177,0.21123937,70084.0,70053.0,0.00148]
[1773244220324,0.21541935,70082.0,70060.0,0.07136739]
[1773244220536,0.21335021,70082.0,70061.0,0.00148]
[1773244220723,0.21128261,70082.0,70061.0,0.00148]
[1773244220941,0.21128261,70082.0,70062.0,0.00148]
[1773244221152,0.07134397,70083.0,70063.0,0.00148]
[1773244221310,0.0692795,70083.0,70060.0,0.06754011]
[1773244221512,0.06721664,70083.0,70064.0,0.00148]
[1773244221720,0.06721664,70083.0,70065.0,0.00148]
[1773244221953,0.07234298,70084.0,70066.0,0.19716172]
[1773244222191,0.07234298,70084.0,70066.0,0.19510035]
[1773244222420,0.07133907,70088.0,70067.0,0.06930038]
[1773244222421,0.06927919,70088.0,70067.0,0.06930038]
[1773244222886,0.06722092,70088.0,70067.0,0.06724211]
[1773244223101,0.06516426,70088.0,70067.0,0.06518545]
[1773244223330,0.0631092,70088.0,70067.0,0.06518545]
[1773244223578,0.0631092,70088.0,70067.0,0.06313039]
[1773244223809,0.06105565,70088.0,70068.0,0.19864172]
[1773244224022,0.0590035,70088.0,70068.0,0.19658957]
[1773244224252,0.05695273,70088.0,70069.0,0.07135823]
[1773244224480,0.05490334,70088.0,70069.0,0.07135823]
[1773244224722,0.00022001,70082.0,70069.0,0.06930884]
[1773244224927,0.0530753,70088.0,70069.0,0.06726079]
[1773244225142,0.05102857,70088.0,70069.0,0.06726079]
[1773244225342,0.21541935,70087.0,70050.0,0.19716172]
[1773244225545,0.21485446,70087.0,70051.0,0.07137642]
[1773244225774,0.21485446,70087.0,70051.0,0.07081153]
[1773244225915,0.2128119,70087.0,70052.0,0.00148]
[1773244226308,0.07134194,70085.0,70053.0,0.07137453]
[1773244226513,0.21338133,70084.0,70053.0,0.06933427]
[1773244226889,0.21134556,70084.0,70054.0,0.00148]
[1773244227241,0.20931205,70084.0,70054.0,0.00148]
[1773244227452,0.20931205,70084.0,70055.0,0.00148]
[1773244227649,0.20728079,70084.0,70056.0,0.00148]
[1773244227853,0.57134002,70087.0,70061.0,0.19716172]
[1773244228178,0.57031049,70087.0,70061.0,0.19513219]
[1773244228381,0.56828259,70087.0,70062.0,0.07136536]
[1773244228524,0.56828259,70087.0,70063.0,0.19864172]
[1773244228723,0.56625632,70087.0,70063.0,0.19661545]
[1773244229085,0.56323162,70087.0,70063.0,0.19459075]
[1773244229276,0.56120849,70087.0,70063.0,0.19459075]
[1773244229455,0.56120849,70087.0,70063.0,0.19256762]
[1773244229861,0.55918693,70087.0,70063.0,0.19054606]
[1773244230070,0.55716683,70087.0,70063.0,0.19054606]
[1773244230269,0.21689935,70086.0,70053.0,0.07137453]
[1773244230485,0.21541935,70084.0,70054.0,0.00148]
[1773244230982,0.21340282,70084.0,70050.0,0.07137453]
[1773244231285,0.21541935,70082.0,70050.0,0.06935984]
[1773244231447,0.2134068,70082.0,70051.0,0.00148]
[1773244231651,0.21541935,70080.0,70052.0,0.00148]
[1773244231876,0.06932361,70085.0,70053.0,0.00148]
[1773244231877,0.21541935,70078.0,70053.0,0.00148]
[1773244232042,0.21341081,70078.0,70053.0,0.00148]
[1773244232277,0.21341081,70078.0,70048.0,0.06904057]
[1773244232483,0.07135008,70077.0,70049.0,0.00148]
[1773244232810,0.28476422,70077.0,70049.0,0.00148]
[1773244233028,0.28476422,70077.0,70048.0,0.06851366]
[1773244233029,0.06934487,70077.0,70050.0,0.00148]
[1773244233232,0.06734134,70077.0,70051.0,0.00148]
[1773244233434,0.21341757,70076.0,70051.0,0.00148]
[1773244233633,0.21541935,70074.0,70051.0,0.00148]
[1773244233810,0.21541935,70072.0,70051.0,0.00148]
[1773244234010,0.06534283,70077.0,70050.0,0.00148]
[1773244234211,0.00148,70074.0,70051.0,0.00148]
[1773244234511,0.07135415,70073.0,70052.0,0.00148]
[1773244234685,0.06935906,70073.0,70053.0,0.00148]
[1773244234886,0.06736555,70073.0,70053.0,0.00148]
[1773244235111,0.06736555,70073.0,70054.0,0.00148]
[1773244235312,0.17527307,70079.0,70055.0,0.00148]
[1773244235638,0.06935864,70078.0,70056.0,0.00148]
[1773244235816,0.07134906,70079.0,70057.0,0.19716172]
[1773244236067,0.07134906,70079.0,70057.0,0.19517291]
[1773244236388,0.06936162,70079.0,70057.0,0.19318547]
[1773244236530,0.07134709,70080.0,70058.0,0.07136943]
[1773244236732,0.07134805,70081.0,70058.0,0.06938347]
[1773244236956,0.07134805,70082.0,70059.0,0.19716172]
[1773244237128,0.0715587,70089.0,70059.0,0.19716172]
[1773244237129,0.55540466,70087.0,70059.0,0.19716172]
[1773244237325,0.55540466,70087.0,70059.0,0.19517864]
[1773244237559,0.55342341,70087.0,70059.0,0.19517864]
[1773244237761,0.55342341,70087.0,70059.0,0.19319739]
[1773244237966,0.551444,70087.0,70059.0,0.19121798]
[1773244238179,0.54946633,70087.0,70059.0,0.18924031]
[1773244238357,0.5474904,70087.0,70059.0,0.18924031]
[1773244238559,0.5474904,70087.0,70060.0,0.07136739]
[1773244238761,0.54551622,70087.0,70061.0,0.19518754]
[1773244238981,0.20906167,70087.0,70061.0,0.19518754]
[1773244239179,0.28040225,70087.0,70061.0,0.19321504]
[1773244239439,0.001,70084.0,70061.0,0.19124412]
[1773244239644,0.27843133,70087.0,70061.0,0.19124412]
[1773244239645,0.27746209,70087.0,70061.0,0.19124412]
[1773244239847,0.2774619,70087.0,70061.0,0.18927488]
[1773244240057,0.2774619,70087.0,70061.0,0.18730728]
[1773244240058,0.2754943,70087.0,70061.0,0.18730728]
[1773244240258,0.2754943,70087.0,70062.0,0.00148]
[1773244240510,0.27352838,70087.0,70063.0,0.00148]
[1773244240710,0.2715641,70087.0,70064.0,0.07136332]
[1773244240911,0.2715641,70087.0,70064.0,0.06939904]
[1773244241061,0.26960141,70087.0,70064.0,0.06939904]
[1773244241264,0.26960141,70087.0,70064.0,0.06743635]
[1773244241490,0.26764031,70087.0,70064.0,0.27908496]
[1773244241690,0.2656807,70087.0,70065.0,0.21360971]
[1773244241886,0.2656807,70087.0,70065.0,0.2116501]
[1773244242115,0.26372256,70087.0,70065.0,0.20969196]
[1773244242338,0.26176578,70087.0,70065.0,0.20773518]
[1773244242514,0.25981037,70087.0,70065.0,0.20773518]
[1773244242734,0.25981037,70087.0,70066.0,0.07136128]
[1773244243067,0.25785633,70087.0,70066.0,0.06940724]
[1773244243272,0.25590362,70087.0,70066.0,0.06745453]
[1773244243419,0.25590362,70087.0,70067.0,0.00148]
[1773244243420,0.20193808,70086.0,70067.0,0.00148]
[1773244243634,0.20193808,70086.0,70068.0,0.00148]
[1773244243833,0.18456323,70087.0,70066.0,0.06651412]
[1773244244037,0.18456323,70087.0,70070.0,0.21360971]
[1773244244241,0.18261507,70087.0,70070.0,0.21360971]
[1773244244419,0.18261507,70087.0,70070.0,0.21166155]
[1773244244625,0.25200887,70087.0,70071.0,0.07135619]
[1773244244864,0.25200887,70087.0,70071.0,0.06940926]
[1773244245178,0.1787224,70087.0,70071.0,0.06746352]
[1773244245326,0.17677786,70087.0,70071.0,0.06551898]
[1773244245527,0.1748347,70087.0,70071.0,0.06551898]
[1773244245824,0.17289282,70087.0,70072.0,0.21360971]
[1773244246147,0.07133681,70092.0,70071.0,0.06357582]
[1773244246148,0.00923674,70096.0,70074.0,0.21360971]
[1773244246343,0.00923674,70096.0,70074.0,0.21166909]
[1773244246678,0.00012,70099.0,70076.0,0.21360971]
[1773244246883,0.00022001,70104.0,70082.0,0.26986211]
[1773244246884,1e-08,70104.0,70082.0,0.26986211]
[1773244247185,0.20388907,70126.0,70091.0,0.21360971]
[1773244247325,0.20388907,70126.0,70082.0,0.26986211]
[1773244247326,0.01124,70130.0,70093.0,0.21360971]
[1773244247535,0.01124,70130.0,70112.0,0.21360971]
[1773244247536,0.00930549,70130.0,70112.0,0.21360971]
[1773244247754,0.00930549,70130.0,70111.0,0.26986211]
[1773244247755,0.00930549,70130.0,70114.0,0.21360971]
[1773244247948,0.00930549,70130.0,70114.0,0.21167672]
[1773244247949,0.07866888,70130.0,70114.0,0.21167672]
[1773244248148,0.00544098,70130.0,70114.0,0.21167672]
[1773244248357,0.07129718,70129.0,70114.0,0.2097452]
[1773244248562,0.07673771,70130.0,70114.0,0.07131243]
[1773244248779,0.07673728,70130.0,70114.0,0.06938218]
[1773244248981,0.07480829,70130.0,70114.0,0.06745319]
[1773244249169,0.07288052,70130.0,70114.0,0.06552547]
[1773244249373,0.00158427,70130.0,70114.0,0.06552547]
[1773244249619,2.042e-05,70135.0,70114.0,0.06359903]
[1773244249778,0.06938715,70135.0,70115.0,0.2168469]
[1773244249977,0.06938715,70135.0,70115.0,0.21492185]
[1773244250180,0.00148,70147.0,70114.0,0.06359903]
[1773244250181,0.01138062,70141.0,70120.0,0.12810488]
[1773244250404,0.01138062,70141.0,70121.0,0.2168469]
[1773244250576,0.00945883,70141.0,70124.0,0.07130226]
[1773244250775,0.07127639,70150.0,70124.0,0.07130226]
[1773244250776,0.0717558,70151.0,70125.0,0.21492511]
[1773244250994,0.07127177,70154.0,70125.0,0.21492511]
[1773244251172,0.27957601,70158.0,70124.0,0.07130226]
[1773244251173,0.07126866,70158.0,70131.0,0.2168469]
[1773244251394,0.06934958,70158.0,70132.0,0.2183269]
[1773244251588,0.07126771,70158.0,70133.0,0.21788932]
[1773244251794,0.06935155,70158.0,70135.0,0.2168469]
[1773244252025,0.07148743,70159.0,70137.0,0.2168469]
[1773244252258,0.07125719,70169.0,70140.0,0.12619006]
[1773244252436,0.0084251,70170.0,70150.0,0.2168469]
[1773244252637,0.07776755,70170.0,70153.0,0.07127278]
[1773244252842,0.07585549,70170.0,70154.0,0.21493484]
[1773244253015,0.07585549,70170.0,70153.0,0.07127278]
[1773244253016,0.0739447,70170.0,70153.0,0.07127278]
[1773244253191,0.28385094,70169.0,70154.0,0.00148]
[1773244253392,0.0739447,70170.0,70143.0,0.2168469]
[1773244253393,0.00022001,70166.0,70143.0,0.2168469]
[1773244253589,0.07203664,70170.0,70149.0,0.2168469]
[1773244253830,0.07203664,70170.0,70149.0,0.21493881]
[1773244254037,0.07203664,70170.0,70144.0,0.00148]
[1773244254230,0.07013229,70170.0,70142.0,0.07042965]
[1773244254427,0.07013229,70170.0,70144.0,0.2168469]
[1773244254628,0.06822974,70170.0,70144.0,0.21594435]
[1773244254844,0.06632876,70170.0,70145.0,0.06923728]
[1773244255103,0.07124132,70184.0,70150.0,0.12810488]
[1773244255307,0.06934368,70186.0,70151.0,0.2168469]
[1773244255581,0.06934368,70186.0,70153.0,0.2168469]
[1773244255785,0.08247876,70187.0,70153.0,0.21495103]
[1773244256028,0.00934584,70187.0,70153.0,0.21495103]
[1773244256210,0.08058453,70187.0,70153.0,0.21305687]
[1773244256349,0.0786922,70187.0,70153.0,0.21116454]
[1773244256568,0.0768017,70187.0,70153.0,0.21116454]
[1773244256772,0.0768017,70187.0,70154.0,0.07127177]
[1773244256998,0.07491302,70187.0,70155.0,0.2168469]
[1773244257204,0.07491302,70187.0,70155.0,0.21495822]
[1773244257353,0.07302611,70187.0,70155.0,0.21307131]
[1773244257552,0.07114106,70187.0,70155.0,0.21118626]
[1773244257974,0.28311004,70187.0,70155.0,0.20930306]
[1773244258183,0.06737688,70187.0,70155.0,0.20930306]
[1773244258469,0.21385218,70186.0,70156.0,0.00148]
[1773244258672,0.21197354,70186.0,70157.0,0.00148]
[1773244258890,0.21385218,70179.0,70137.0,0.07128904]
[1773244259151,0.21385218,70177.0,70139.0,0.2168469]
[1773244259431,0.21197969,70175.0,70139.0,0.21497222]
[1773244259593,0.21197969,70175.0,70139.0,0.21309973]
[1773244259798,0.21010933,70175.0,70139.0,0.21309973]
[1773244259993,0.21010933,70175.0,70139.0,0.21122937]
[1773244260198,0.20824109,70175.0,70139.0,0.20936113]
[1773244260469,0.28509247,70185.0,70141.0,0.2168469]
[1773244260738,0.28509247,70185.0,70142.0,0.00148]
[1773244260739,0.21198755,70184.0,70142.0,0.00148]
[1773244260937,0.07124232,70183.0,70143.0,0.07128295]
[1773244261101,0.21385218,70182.0,70144.0,0.2168469]
[1773244261312,0.21199141,70182.0,70144.0,0.21498613]
[1773244262111,0.21199141,70182.0,70153.0,0.001]
[1773244262496,0.21347141,70182.0,70154.0,0.00148]
[1773244262886,0.21199141,70182.0,70154.0,0.00148]
[1773244263049,0.06938539,70181.0,70155.0,0.06941179]
[1773244263250,0.28323757,70181.0,70155.0,0.06941179]
[1773244263467,0.28138001,70181.0,70155.0,0.06755423]
[1773244263667,0.27952385,70181.0,70155.0,0.06755423]
[1773244263872,0.00014248,70184.0,70155.0,0.06569807]
[1773244264090,0.00014248,70184.0,70156.0,0.2168469]
[1773244264285,0.07124148,70184.0,70156.0,0.2168469]
[1773244264592,0.06960412,70190.0,70156.0,0.21499402]
[1773244264791,0.07123485,70191.0,70156.0,0.21314288]
[1773244265092,0.06938448,70192.0,70158.0,0.21499762]
[1773244265394,0.07145421,70194.0,70160.0,0.2168469]
[1773244265547,0.06960885,70194.0,70163.0,0.26554837]
[1773244265749,0.06960885,70194.0,70164.0,0.2168469]
[1773244265750,0.06776528,70194.0,70164.0,0.2168469]
[1773244265985,0.06776528,70194.0,70164.0,0.21500333]
[1773244266196,0.21385218,70193.0,70164.0,0.21316153]
[1773244266548,0.06408495,70194.0,70164.0,0.21316153]
[1773244266759,0.06408495,70194.0,70164.0,0.211323]
[1773244266955,0.01072155,70195.0,70165.0,0.0712606]
[1773244267316,0.00048,70202.0,70165.0,0.0712606]
[1773244267317,0.07119464,70232.0,70181.0,0.2168469]
[1773244267561,0.07119464,70232.0,70190.0,0.12810488]
[1773244267562,0.21385218,70227.0,70190.0,0.12810488]
[1773244267761,0.21201865,70227.0,70191.0,0.21649337]
[1773244267963,0.21018694,70227.0,70192.0,0.00148]
[1773244268469,0.20835694,70227.0,70192.0,0.2164969]
[1773244268638,0.20652882,70227.0,70194.0,0.2168469]
[1773244268841,0.20652882,70227.0,70194.0,0.21501878]
[1773244269041,0.20652882,70227.0,70195.0,0.00144]
[1773244269042,0.21385218,70225.0,70195.0,0.00144]
[1773244269247,0.21202835,70225.0,70196.0,0.00144]
[1773244269568,0.21225061,70211.0,70179.0,0.07086255]
[1773244269795,0.12810488,70220.0,70180.0,0.00136]
[1773244269796,0.00022001,70208.0,70180.0,0.00136]
[1773244269919,0.21385218,70207.0,70180.0,0.00136]
[1773244270137,0.21203429,70207.0,70181.0,0.00136]
[1773244270338,0.21203429,70207.0,70182.0,0.00136]
[1773244270563,0.21021805,70207.0,70183.0,0.00136]
[1773244270799,0.21021805,70207.0,70179.0,0.06812684]
[1773244270800,0.20840335,70207.0,70184.0,0.0014]
[1773244270953,0.20659009,70207.0,70184.0,0.0014]
[1773244271155,0.20659009,70207.0,70178.0,0.07124638]
[1773244271156,0.07121898,70206.0,70185.0,0.0014]
[1773244271601,0.07120524,70220.0,70186.0,0.2168469]
[1773244271749,0.07120524,70220.0,70186.0,0.21503649]
[1773244272152,0.06939849,70220.0,70186.0,0.21503649]
[1773244272370,0.06939849,70220.0,70186.0,0.21322974]
[1773244272585,0.07119955,70226.0,70191.0,0.2168469]
[1773244272774,0.21385218,70225.0,70191.0,0.2168469]
[1773244272973,0.21385218,70225.0,70191.0,0.21504381]
[1773244273170,0.07120072,70224.0,70193.0,0.21504557]
[1773244273389,0.28325157,70225.0,70195.0,0.2168469]
[1773244273748,0.07120072,70225.0,70194.0,0.0014]
[1773244273974,0.21385218,70224.0,70195.0,0.0014]
[1773244274184,0.07120072,70225.0,70196.0,0.2150509]
[1773244274507,0.21385218,70226.0,70192.0,0.06943538]
[1773244274733,0.21385218,70226.0,70193.0,0.0014]
[1773244274734,0.21205963,70226.0,70193.0,0.0014]
[1773244275112,0.21026914,70226.0,70193.0,0.0014]
[1773244275311,0.21385218,70224.0,70194.0,0.0014]
[1773244275513,0.21385218,70224.0,70186.0,0.07123927]
[1773244275514,0.21206372,70224.0,70195.0,0.0014]
[1773244275835,0.21206372,70224.0,70196.0,0.2168469]
[1773244275993,0.21027843,70224.0,70196.0,0.21506161]
[1773244276200,0.35004532,70228.0,70196.0,0.21506161]
[1773244276201,0.27884764,70228.0,70196.0,0.21506161]
[1773244276400,0.07119835,70227.0,70196.0,0.21506161]
[1773244276589,0.06941609,70227.0,70196.0,0.21506161]
[1773244276823,0.06763548,70227.0,70196.0,0.21327935]
[1773244277044,0.06763548,70227.0,70196.0,0.21149874]
[1773244277299,0.21207321,70226.0,70197.0,0.07266811]
[1773244277515,0.21207321,70226.0,70197.0,0.07088914]
[1773244277763,0.21029626,70226.0,70197.0,0.07088914]
[1773244278008,0.21029626,70226.0,70197.0,0.06911219]
[1773244278311,0.20852133,70226.0,70198.0,0.00144]
[1773244278615,0.20852133,70226.0,70197.0,0.06733726]
[1773244278914,0.20675023,70226.0,70198.0,0.00144]
[1773244279384,0.27884764,70228.0,70199.0,0.06945845]
[1773244279550,0.07119772,70227.0,70200.0,0.2168469]
[1773244279792,0.07119772,70227.0,70199.0,0.06945845]
[1773244279937,0.07119772,70227.0,70190.0,0.32684]
[1773244279938,0.20353382,70226.0,70191.0,0.07090983]
[1773244280148,0.20177126,70226.0,70192.0,0.00144]
[1773244280358,0.20177126,70226.0,70192.0,0.21134558]
[1773244280555,0.27884764,70228.0,70192.0,0.20958481]
[1773244280757,0.00014238,70237.0,70191.0,0.07058727]
[1773244280758,0.07131373,70231.0,70201.0,0.20990558]
[1773244280926,0.20375383,70226.0,70202.0,0.00144]
[1773244281126,0.06955466,70231.0,70191.0,0.0688282]
[1773244281127,0.06955466,70231.0,70203.0,0.00144]
[1773244281374,0.07119363,70232.0,70204.0,0.00144]
[1773244281524,0.06943805,70232.0,70205.0,0.00144]
[1773244281733,0.06768408,70232.0,70204.0,0.20959161]
[1773244281935,0.06768408,70232.0,70205.0,0.21134558]
[1773244282136,0.06768408,70232.0,70206.0,0.00144]
[1773244282323,0.06944164,70233.0,70206.0,0.00144]
[1773244282530,0.06769268,70233.0,70207.0,0.21134558]
[1773244282728,0.06769268,70233.0,70209.0,0.20990558]
[1773244283133,0.06594677,70233.0,70209.0,0.20815967]
[1773244283385,0.06998304,70234.0,70210.0,0.07121492]
[1773244283533,0.06998304,70234.0,70210.0,0.06947045]
[1773244283732,0.06824026,70234.0,70211.0,0.20990558]
[1773244283931,0.07118754,70238.0,70211.0,0.2081628]
[1773244284154,0.07118552,70239.0,70211.0,0.2081628]
[1773244284357,0.07118552,70239.0,70211.0,0.20642168]
[1773244284579,0.06944608,70239.0,70211.0,0.20468224]
[1773244284737,0.07087041,70240.0,70211.0,0.20468224]
[1773244284937,0.07087041,70240.0,70211.0,0.20294441]
[1773244285212,0.06913414,70240.0,70211.0,0.20294441]
[1773244285386,0.06913414,70240.0,70212.0,0.06947662]
[1773244285602,0.27093321,70240.0,70212.0,0.06774187]
[1773244285775,0.26919999,70240.0,70212.0,0.06774187]
[1773244285974,0.26919999,70240.0,70212.0,0.06600865]
[1773244286178,0.2674683,70240.0,70212.0,0.06427696]
[1773244286402,0.06220431,70240.0,70212.0,0.06427696]
[1773244286611,0.06220431,70240.0,70213.0,0.00144]
[1773244286612,0.20353382,70239.0,70213.0,0.00144]
[1773244286864,0.20328559,70239.0,70214.0,0.00144]
[1773244287100,0.20007903,70239.0,70215.0,0.00144]
[1773244287404,0.27299636,70237.0,70217.0,0.07120782]
[1773244287632,0.27299636,70237.0,70216.0,0.07264872]
[1773244287633,0.20353382,70236.0,70216.0,0.07264872]
[1773244287831,0.20181014,70236.0,70216.0,0.07264827]
[1773244288147,0.20181014,70236.0,70217.0,0.00144]
[1773244288350,0.20181014,70236.0,70211.0,0.07121188]
[1773244288552,0.20008973,70236.0,70202.0,0.07122304]
[1773244288747,0.20008973,70236.0,70203.0,0.00144]
[1773244288908,0.19837123,70236.0,70202.0,0.06950263]
[1773244289109,0.19837123,70236.0,70203.0,0.00144]
[1773244289334,0.20353382,70234.0,70209.0,0.07121594]
[1773244289643,0.20353382,70234.0,70206.0,0.06950173]
[1773244289644,0.2018186,70234.0,70206.0,0.06950173]
[1773244289797,0.00148,70233.0,70206.0,0.06950173]
[1773244289997,0.20353382,70232.0,70206.0,0.06778818]
[1773244290350,0.20182195,70232.0,70206.0,0.06607631]
[1773244290547,0.20011178,70232.0,70206.0,0.06607631]
[1773244290849,0.20011178,70232.0,70203.0,0.00144]
[1773244291050,0.20353382,70228.0,70203.0,0.00144]
[1773244291217,0.07119768,70227.0,70204.0,0.07122101]
[1773244291410,0.07119768,70227.0,70204.0,0.06951447]
[1773244291612,0.33338089,70229.0,70205.0,0.20990558]
[1773244291811,0.07119554,70230.0,70205.0,0.20820061]
[1773244292015,0.07119018,70235.0,70205.0,0.20820061]
[1773244292328,0.06948828,70235.0,70205.0,0.20649716]
[1773244292532,1e-08,70241.0,70220.0,0.12810488]
[1773244292813,0.00014236,70245.0,70221.0,0.20964497]
[1773244292965,0.07116728,70257.0,70222.0,0.27635143]
[1773244293168,0.07116145,70263.0,70233.0,0.20990558]
[1773244293397,0.20353382,70268.0,70234.0,0.07263059]
[1773244293562,0.20353382,70266.0,70234.0,0.07093465]
[1773244294067,0.20183941,70266.0,70235.0,0.20821117]
[1773244294478,0.20014799,70266.0,70235.0,0.20651975]
[1773244294706,0.19845813,70266.0,70235.0,0.20651975]
[1773244294883,0.19845813,70266.0,70235.0,0.20482989]
[1773244295093,0.12810488,70260.0,70223.0,0.07120174]
[1773244295421,0.20184758,70256.0,70224.0,0.07095208]
[1773244295607,0.20184758,70256.0,70224.0,0.06926584]
[1773244295814,0.20016333,70256.0,70224.0,0.06758159]
[1773244296173,0.19848107,70256.0,70225.0,0.00144]
[1773244296376,0.19680063,70256.0,70226.0,0.00144]
[1773244296577,0.19680063,70256.0,70227.0,0.00144]
[1773244296993,0.19512375,70256.0,70224.0,0.06354201]
[1773244297200,0.19512375,70256.0,70225.0,0.00144]
[1773244297526,0.0694955,70255.0,70227.0,0.07119768]
[1773244297831,0.20353382,70254.0,70227.0,0.06952387]
[1773244298055,0.20353382,70252.0,70226.0,0.00144]
[1773244298274,0.20186318,70252.0,70227.0,0.00144]
[1773244298493,0.00148,70251.0,70227.0,0.00144]
[1773244298671,0.20353382,70250.0,70228.0,0.00144]
[1773244298892,0.20186631,70250.0,70229.0,0.00144]
[1773244299106,0.20020021,70250.0,70229.0,0.00144]
[1773244299319,0.20020021,70250.0,70230.0,0.00144]
[1773244299542,0.07117539,70249.0,70231.0,0.07119363]
[1773244299766,0.06951186,70249.0,70231.0,0.06952885]
[1773244299986,0.20353382,70248.0,70226.0,0.07119838]